bitfinex-derivatives/quotes_BTCF0:USTF0_20240825
["timestamp","ask_amount","ask_price","bid_price","bid_amount"]
[1724599400115,0.092,64277.0,64276.0,0.102151]
[1724599401107,0.092,64277.0,64276.0,0.12159923]
[1724599401507,0.092,64277.0,64276.0,0.102151]
[1724599406423,0.092,64277.0,64276.0,0.17973623]
[1724599406612,0.169749,64277.0,64276.0,0.10198523]
[1724599406812,0.169749,64277.0,64276.0,0.0244]
[1724599407515,0.19058912,64277.0,64276.0,0.0244]
[1724599408415,0.26833812,64277.0,64276.0,0.0244]
[1724599408610,1.34040012,64277.0,64274.0,0.04661011]
[1724599408811,0.155514,64271.0,64270.0,0.04661511]
[1724599409008,0.077759,64269.0,64268.0,0.04661511]
[1724599409214,0.167759,64269.0,64268.0,0.04661511]
[1724599409722,0.07776,64268.0,64267.0,0.04661511]
[1724599409909,0.16776,64268.0,64267.0,0.04661511]
[1724599410418,0.16776,64268.0,64262.0,0.0002333]
[1724599410419,0.077761,64267.0,64266.0,0.04661511]
[1724599410618,0.167761,64267.0,64266.0,0.04661511]
[1724599411117,0.168161,64267.0,64266.0,0.04661511]
[1724599411517,0.0904,64267.0,64265.0,0.04661511]
[1724599411816,0.077766,64263.0,64262.0,0.06238486]
[1724599412015,0.167766,64263.0,64262.0,0.06238486]
[1724599412519,0.167766,64263.0,64262.0,0.06232041]
[1724599412520,0.168166,64263.0,64262.0,0.06232041]
[1724599412917,0.168166,64263.0,64262.0,0.0002333]
[1724599414319,0.169166,64263.0,64262.0,0.0012333]
[1724599415119,0.170166,64263.0,64262.0,0.0022333]
[1724599416421,0.170166,64263.0,64262.0,0.04876607]
[1724599418318,0.170166,64263.0,64262.0,0.0022333]
[1724599418720,0.247932,64263.0,64262.0,0.0022333]
[1724599420522,0.27129201,64263.0,64262.0,0.0022333]
[1724599421726,0.27029201,64263.0,64262.0,0.0022333]
[1724599421923,0.27029201,64263.0,64262.0,0.0032333]
[1724599422517,0.26929201,64263.0,64262.0,0.0032333]
[1724599431326,0.73613201,64263.0,64251.0,0.04653277]
[1724599431530,0.09,64252.0,64251.0,0.0464995]
[1724599431735,0.077781,64251.0,64250.0,0.4571995]
[1724599432425,0.077781,64251.0,64250.0,0.4107]
[1724599432626,0.078181,64251.0,64250.0,0.4107]
[1724599432826,0.078181,64251.0,64250.0,0.45720749]
[1724599433026,0.078181,64251.0,64250.0,0.4107]
[1724599433330,0.079181,64251.0,64250.0,0.4127]
[1724599433525,0.079181,64251.0,64250.0,0.0519]
[1724599434831,0.080181,64251.0,64250.0,0.0519]
[1724599435142,0.080181,64251.0,64250.0,0.09842913]
[1724599435536,0.080181,64251.0,64250.0,0.0519]
[1724599437431,0.080181,64251.0,64250.0,0.15898711]
[1724599438430,0.0024,64251.0,64250.0,0.264682]
[1724599438830,0.0024,64251.0,64250.0,0.174682]
[1724599443042,0.09,64252.0,64251.0,0.077781]
[1724599443236,0.09,64252.0,64251.0,0.19630728]
[1724599443838,0.16778,64252.0,64251.0,0.19670728]
[1724599444339,0.16978,64252.0,64251.0,0.19670728]
[1724599446343,0.16978,64252.0,64251.0,0.1967081]
[1724599448940,0.07978,64252.0,64251.0,0.1967081]
[1724599449239,0.16978,64252.0,64251.0,0.1967081]
[1724599449849,0.002,64252.0,64251.0,0.1967081]
[1724599450047,0.092,64252.0,64251.0,0.28988268]
[1724599450244,0.092,64252.0,64251.0,0.1967081]
[1724599451745,0.002,64252.0,64251.0,0.2867081]
[1724599452454,0.002,64252.0,64251.0,1.1636281]
[1724599452641,0.0002333,64257.0,64256.0,0.077775]
[1724599452843,0.0902333,64257.0,64256.0,0.6504368]
[1724599453045,0.0902333,64257.0,64256.0,0.5571021]
[1724599453247,0.0902333,64257.0,64256.0,0.65041689]
[1724599453445,0.0902333,64257.0,64256.0,0.65081689]
[1724599454053,0.0922333,64257.0,64256.0,0.65281689]
[1724599454644,0.077765,64265.0,64264.0,0.077765]
[1724599454847,0.167765,64265.0,64264.0,0.077765]
[1724599455448,0.167765,64265.0,64264.0,0.078165]
[1724599455650,0.167765,64265.0,64264.0,0.27442146]
[1724599455847,0.02112612,64267.0,64265.0,0.077763]
[1724599456050,0.09,64266.0,64265.0,0.077763]
[1724599457150,0.09,64266.0,64265.0,0.124563]
[1724599457748,0.091,64266.0,64265.0,0.124563]
[1724599458156,0.091,64266.0,64265.0,0.17117085]
[1724599460149,0.091,64266.0,64265.0,0.17817085]
[1724599460347,0.091,64266.0,64265.0,0.131563]
[1724599460655,0.091,64266.0,64265.0,0.14926895]
[1724599460859,0.091,64266.0,64265.0,0.15026895]
[1724599461051,0.092,64266.0,64265.0,0.15326895]
[1724599462853,0.092,64266.0,64265.0,0.15226895]
[1724599463650,0.092,64266.0,64265.0,0.006]
[1724599463651,0.169763,64266.0,64265.0,0.006]
[1724599467855,0.169763,64266.0,64265.0,0.083764]
[1724599469555,0.169763,64266.0,64265.0,0.13034395]
[1724599470661,0.169763,64266.0,64265.0,0.05257995]
[1724599471862,0.530563,64266.0,64265.0,0.05257995]
[1724599472058,0.580363,64266.0,64265.0,0.006]
[1724599472959,0.658126,64266.0,64265.0,0.006]
[1724599473149,0.73581416,64266.0,64265.0,0.006]
[1724599473349,0.73381416,64266.0,64265.0,0.003]
[1724599473553,0.656126,64266.0,64265.0,0.005]
[1724599473959,0.73373111,64266.0,64265.0,0.005]
[1724599474158,0.656126,64266.0,64265.0,0.005]
[1724599481168,0.67948601,64266.0,64265.0,0.005]
[1724599483667,1.14628601,64266.0,64265.0,0.005]
[1724599483857,1.54628601,64266.0,64265.0,0.005]
[1724599484567,1.14628601,64266.0,64265.0,0.005]
[1724599485965,0.67948601,64266.0,64265.0,0.005]
[1724599487761,0.62968601,64266.0,64265.0,0.005]
[1724599488667,0.26888601,64266.0,64265.0,0.005]
[1724599488870,0.62968601,64266.0,64265.0,0.005]
[1724599490268,0.26888601,64266.0,64265.0,0.005]
[1724599490464,0.62968601,64266.0,64265.0,0.005]
[1724599490857,0.528563,64266.0,64265.0,0.005]
[1724599491167,0.60622821,64266.0,64265.0,0.005]
[1724599491365,0.60622821,64266.0,64265.0,0.0525]
[1724599492167,0.24542821,64266.0,64265.0,0.0525]
[1724599492367,0.60622821,64266.0,64265.0,0.0525]
[1724599494364,0.528563,64266.0,64265.0,0.0525]
[1724599495168,0.528563,64266.0,64265.0,0.09907995]
[1724599495361,0.528563,64266.0,64265.0,0.0525]
[1724599496675,0.167763,64266.0,64265.0,0.0525]
[1724599496972,0.528563,64266.0,64265.0,0.0525]
[1724599499573,0.528563,64266.0,64265.0,0.1146438]
[1724599501267,0.528563,64266.0,64265.0,0.0525]
[1724599501468,0.438563,64266.0,64265.0,0.0525]
[1724599501778,0.528563,64266.0,64265.0,0.0525]
[1724599505077,0.167763,64266.0,64265.0,0.0525]
[1724599508270,0.167763,64266.0,64265.0,0.1147263]
[1724599510283,0.167763,64266.0,64265.0,0.09916952]
[1724599511680,0.167763,64266.0,64265.0,0.05166952]
[1724599511878,0.245526,64266.0,64265.0,0.005]
[1724599524786,0.155526,64266.0,64265.0,0.005]
[1724599524987,0.245526,64266.0,64265.0,0.005]
[1724599530690,0.245526,64266.0,64265.0,0.06724382]
[1724599533098,0.245526,64266.0,64265.0,0.005]
[1724599534191,0.32333148,64266.0,64265.0,0.005]
[1724599534798,0.245526,64266.0,64265.0,0.005]
[1724599536902,0.155526,64266.0,64265.0,0.005]
[1724599537099,0.245526,64266.0,64265.0,0.005]
[1724599537294,0.155526,64266.0,64265.0,0.005]
[1724599537491,0.167763,64266.0,64265.0,0.0536]
[1724599537803,0.167763,64266.0,64265.0,0.1001]
[1724599537995,0.167763,64266.0,64265.0,0.17784993]
[1724599538195,0.167763,64266.0,64265.0,0.29635833]
[1724599538397,0.167763,64266.0,64265.0,0.1001]
[1724599542409,0.167763,64266.0,64265.0,0.29635537]
[1724599543306,0.167763,64266.0,64265.0,0.17784993]
[1724599543706,0.167763,64266.0,64265.0,0.29635385]
[1724599544396,0.167763,64266.0,64265.0,0.17784993]
[1724599545199,0.167763,64266.0,64265.0,0.29635382]
[1724599545400,0.167763,64266.0,64265.0,0.25561393]
[1724599545606,0.167763,64266.0,64265.0,0.37411697]
[1724599546712,0.167763,64266.0,64265.0,0.37411696]
[1724599547411,0.167763,64266.0,64265.0,0.25561393]
[1724599548412,0.22998026,64266.0,64265.0,0.24004806]
[1724599549208,0.22998026,64266.0,64265.0,0.177864]
[1724599553603,0.22998026,64266.0,64265.0,0.24004806]
[1724599554012,0.22998026,64266.0,64265.0,0.177864]
[1724599554612,0.22998026,64266.0,64265.0,0.24004806]
[1724599555108,0.22998026,64266.0,64265.0,0.177864]
[1724599555314,0.167763,64266.0,64265.0,0.177864]
[1724599560621,0.167763,64266.0,64265.0,0.131364]
[1724599561513,0.167763,64266.0,64265.0,0.20911393]
[1724599563316,0.22998026,64266.0,64265.0,0.131364]
[1724599566412,0.167763,64266.0,64265.0,0.131364]
[1724599570324,0.077763,64266.0,64265.0,0.24986785]
[1724599570623,0.167763,64266.0,64265.0,0.24986785]
[1724599571511,0.22999623,64266.0,64265.0,0.24986785]
[1724599571922,0.167763,64266.0,64265.0,0.24986785]
[1724599572426,0.22999623,64266.0,64265.0,0.24986785]
[1724599572918,0.167763,64266.0,64265.0,0.24986785]
[1724599574220,0.167763,64266.0,64265.0,0.24986782]
[1724599577121,0.09,64266.0,64265.0,0.24986782]
[1724599577330,0.09,64267.0,64266.0,0.077763]
[1724599577828,0.09,64267.0,64266.0,0.19625954]
[1724599578233,0.09,64267.0,64266.0,0.27442876]
[1724599578528,0.09,64267.0,64266.0,0.15793222]
[1724599579230,0.15223461,64267.0,64266.0,0.080163]
[1724599579523,0.09,64267.0,64266.0,0.080163]
[1724599579920,0.06221817,64270.0,64266.0,1.00769791]
[1724599580120,0.06221817,64274.0,64269.0,0.45411479]
[1724599580325,0.00096,64278.0,64271.0,0.09]
[1724599580627,0.06221817,64280.0,64279.0,0.077747]
[1724599580932,0.00096,64285.0,64284.0,0.077741]
[1724599581127,0.06216145,64290.0,64287.0,0.077736]
[1724599581338,0.1130842,64291.0,64287.0,0.167736]
[1724599581519,0.1130842,64291.0,64290.0,0.3608]
[1724599581832,0.09143267,64291.0,64290.0,0.3608]
[1724599582132,0.09143267,64291.0,64290.0,0.3612]
[1724599584021,0.10443267,64291.0,64290.0,0.3622]
[1724599584731,0.11643267,64291.0,64290.0,0.3632]
[1724599587227,0.02643267,64291.0,64290.0,0.3632]
[1724599587629,0.11643267,64291.0,64290.0,0.3632]
[1724599588628,0.19416467,64291.0,64290.0,0.3632]
[1724599589226,0.19416467,64291.0,64290.0,0.0024]
[1724599592032,0.18216467,64291.0,64290.0,0.0014]
[1724599592229,0.18316467,64291.0,64290.0,0.0014]
[1724599593126,0.17016467,64291.0,64290.0,0.0004]
[1724599593335,0.17116467,64291.0,64290.0,0.0004]
[1724599601434,0.24889667,64291.0,64290.0,0.0004]
[1724599601635,0.29759667,64291.0,64290.0,0.0004]
[1724599601833,0.34629667,64291.0,64290.0,0.0004]
[1724599602236,0.077747,64279.0,64278.0,0.0002333]
[1724599604748,0.079747,64279.0,64278.0,0.0142333]
[1724599605244,0.077747,64279.0,64278.0,0.0062333]
[1724599605443,0.078747,64279.0,64278.0,0.0142333]
[1724599605837,0.078747,64279.0,64278.0,0.0082333]
[1724599605838,0.079747,64279.0,64278.0,0.0082333]
[1724599606039,0.079747,64279.0,64278.0,0.0142333]
[1724599606239,0.080747,64279.0,64278.0,0.0142333]
[1724599606936,0.079747,64279.0,64278.0,0.0062333]
[1724599607141,0.080747,64279.0,64278.0,0.0142333]
[1724599607337,0.080747,64279.0,64278.0,0.06063674]
[1724599607743,0.079747,64279.0,64278.0,0.05263674]
[1724599607945,0.079747,64279.0,64278.0,0.0142333]
[1724599607946,0.080747,64279.0,64278.0,0.0142333]
[1724599608548,0.079747,64279.0,64278.0,0.0142333]
[1724599609247,0.079747,64279.0,64278.0,0.21005037]
[1724599609636,0.079747,64279.0,64278.0,0.28779837]
[1724599609837,0.002,64279.0,64278.0,0.30045929]
[1724599610243,0.0024,64279.0,64278.0,0.30045929]
[1724599617058,0.0024,64279.0,64278.0,0.66125929]
[1724599619348,0.0024,64279.0,64278.0,0.57125929]
[1724599624558,0.0024,64279.0,64278.0,0.21045929]
[1724599624859,0.0024,64279.0,64278.0,0.57125929]
[1724599625249,0.05350696,64280.0,64279.0,0.077747]
[1724599625449,0.05350696,64280.0,64279.0,0.28941887]
[1724599626055,0.05350696,64280.0,64279.0,0.28981887]
[1724599626551,0.09,64282.0,64280.0,0.077745]
[1724599626760,0.09,64282.0,64281.0,0.11847799]
[1724599627350,0.09,64282.0,64281.0,0.47967799]
[1724599627947,0.091,64282.0,64281.0,0.47967799]
[1724599628452,0.091,64282.0,64281.0,0.48467799]
[1724599629959,0.091,64282.0,64281.0,0.48466764]
[1724599630649,0.09,64282.0,64281.0,0.48466764]
[1724599630847,0.09,64282.0,64281.0,0.48966764]
[1724599635160,0.09,64282.0,64281.0,0.12886764]
[1724599635367,0.077743,64283.0,64281.0,0.48966764]
[1724599635555,0.077743,64283.0,64282.0,0.11846764]
[1724599635756,0.167743,64283.0,64282.0,0.11846764]
[1724599636158,0.167743,64283.0,64282.0,0.11886764]
[1724599636354,0.167743,64283.0,64282.0,0.09754086]
[1724599636764,0.167743,64283.0,64282.0,0.10154086]
[1724599637067,0.167743,64283.0,64282.0,0.46234086]
[1724599637267,0.167743,64283.0,64282.0,0.46634086]
[1724599637961,0.167743,64283.0,64282.0,0.38864643]
[1724599639560,0.167743,64283.0,64282.0,0.02784643]
[1724599639757,0.167743,64283.0,64282.0,0.38864643]
[1724599641467,0.167743,64283.0,64282.0,0.0084]
[1724599641669,0.167743,64283.0,64282.0,0.38864642]
[1724599642873,0.167743,64283.0,64282.0,0.3692]
[1724599643075,0.22995508,64283.0,64282.0,0.3692]
[1724599645070,0.167743,64283.0,64282.0,0.48766763]
[1724599646568,0.167743,64283.0,64282.0,0.12686763]
[1724599646772,0.167743,64283.0,64282.0,0.48766763]
[1724599649566,0.167743,64283.0,64282.0,0.12686763]
[1724599649771,0.167743,64283.0,64282.0,0.3692]
[1724599649970,0.167743,64283.0,64282.0,0.48766763]
[1724599650170,0.167743,64283.0,64282.0,0.56541063]
[1724599650569,0.15221208,64285.0,64283.0,0.077741]
[1724599650871,0.15221208,64285.0,64284.0,0.11846763]
[1724599651268,0.15221208,64285.0,64284.0,0.11886763]
[1724599651676,0.15221208,64285.0,64284.0,0.19660863]
[1724599652967,0.15221208,64285.0,64284.0,0.078141]
[1724599652968,0.09,64285.0,64284.0,0.078141]
[1724599653579,0.09,64285.0,64284.0,0.080141]
[1724599654071,0.09,64285.0,64284.0,0.081141]
[1724599654875,0.09,64285.0,64284.0,0.1005874]
[1724599657275,0.09,64285.0,64284.0,0.10058741]
[1724599660069,0.09,64285.0,64284.0,0.17828759]
[1724599660275,0.09,64285.0,64284.0,0.19960859]
[1724599661880,0.16774,64285.0,64284.0,0.19960859]
[1724599663984,0.16774,64285.0,64284.0,0.19960858]
[1724599668077,0.16774,64285.0,64284.0,0.081141]
[1724599668382,0.16774,64285.0,64284.0,0.10229521]
[1724599670987,0.16774,64285.0,64284.0,0.081141]
[1724599675084,0.16774,64285.0,64284.0,0.27727873]
[1724599677600,0.16774,64285.0,64284.0,0.29672508]
[1724599677790,0.16774,64285.0,64284.0,0.21905456]
[1724599678286,0.16774,64285.0,64284.0,0.10058735]
[1724599678493,0.16774,64285.0,64284.0,0.21905355]
[1724599679092,0.16774,64285.0,64284.0,0.1996072]
[1724599681198,0.07774,64285.0,64284.0,0.1996072]
[1724599681399,0.0622139,64287.0,64284.0,0.1218662]
[1724599681695,0.0622139,64287.0,64286.0,0.077738]
[1724599682100,0.0622139,64288.0,64286.0,0.15538125]
[1724599682297,0.0622139,64288.0,64286.0,0.15578125]
[1724599682495,0.0622139,64287.0,64286.0,0.078138]
[1724599685000,0.0632139,64287.0,64286.0,0.078138]
[1724599685201,0.001,64287.0,64286.0,0.19659663]
[1724599685396,0.001,64287.0,64286.0,0.21604159]
[1724599685597,0.001,64287.0,64286.0,0.19659663]
[1724599685797,0.001,64287.0,64286.0,0.23548585]
[1724599685993,0.001,64287.0,64286.0,0.19659663]
[1724599686302,0.09,64290.0,64286.0,0.19659663]
[1724599686303,0.09,64290.0,64287.0,0.077737]
[1724599686499,0.00183267,64291.0,64289.0,0.43840663]
[1724599686702,0.09,64290.0,64289.0,0.43840663]
[1724599686896,0.09,64290.0,64289.0,0.55686324]
[1724599687505,0.09,64290.0,64289.0,0.43840663]
[1724599688495,0.09,64290.0,64289.0,0.438535]
[1724599688700,0.00183267,64291.0,64289.0,0.438535]
[1724599688907,0.09,64290.0,64289.0,0.439535]
[1724599689400,0.00183267,64291.0,64289.0,0.439535]
[1724599689606,0.00183267,64291.0,64289.0,0.529535]
[1724599689607,0.09183267,64291.0,64289.0,0.529535]
[1724599690195,0.09183267,64291.0,64290.0,0.0004]
[1724599690399,0.00183267,64291.0,64290.0,0.078134]
[1724599690896,0.00183267,64291.0,64290.0,0.14020164]
[1724599691502,0.06398546,64291.0,64290.0,0.14020164]
[1724599691904,0.06498546,64291.0,64290.0,0.14020164]
[1724599692202,0.10835036,64314.0,64290.0,0.14244218]
[1724599692405,0.001,64306.0,64305.0,0.04646092]
[1724599692614,0.15214641,64309.0,64305.0,0.04646092]
[1724599692615,0.09,64309.0,64308.0,0.077712]
[1724599692905,0.06214641,64313.0,64308.0,0.13645379]
[1724599693205,0.077697,64320.0,64313.0,0.077706]
[1724599693408,0.077697,64320.0,64318.0,0.3608]
[1724599693706,0.09,64319.0,64318.0,0.3608]
[1724599694097,0.0214145,64324.0,64318.0,0.4508]
[1724599694393,0.001,64329.0,64321.0,0.09]
[1724599694595,0.09,64325.0,64321.0,0.09]
[1724599694792,0.09,64322.0,64319.0,0.4070333]
[1724599695094,0.09,64320.0,64319.0,0.0462333]
[1724599696110,0.09,64320.0,64319.0,0.0472333]
[1724599696609,0.09,64320.0,64319.0,0.0012333]
[1724599696802,0.104,64320.0,64319.0,0.0022333]
[1724599697697,0.1519,64320.0,64319.0,0.0022333]
[1724599698208,0.1519,64320.0,64319.0,0.0012333]
[1724599698500,0.2123,64320.0,64319.0,0.0026333]
[1724599698702,0.2123,64320.0,64308.0,0.3608]
[1724599698703,0.23377164,64320.0,64308.0,0.3608]
[1724599698902,0.09,64311.0,64308.0,0.3608]
[1724599700009,0.09,64311.0,64308.0,0.3618]
[1724599701413,0.09,64311.0,64308.0,0.3628]
[1724599701615,0.077711,64309.0,64308.0,0.3618]
[1724599701916,0.077711,64309.0,64308.0,0.002]
[1724599702110,0.077711,64309.0,64308.0,0.001]
[1724599702316,0.077711,64309.0,64308.0,0.002]
[1724599702705,0.089711,64309.0,64308.0,0.001]
[1724599702910,0.463511,64309.0,64308.0,0.002]
[1724599705011,0.45720074,64309.0,64308.0,0.001]
[1724599705515,0.45720074,64309.0,64303.0,0.0002333]
[1724599705516,0.077717,64304.0,64303.0,0.0002333]
[1724599705713,0.167717,64304.0,64303.0,0.0002333]
[1724599706020,0.17040674,64304.0,64303.0,0.0002333]
[1724599714114,0.53120674,64304.0,64303.0,0.0002333]
[1724599715626,0.077718,64303.0,64296.0,0.36874854]
[1724599715918,0.077718,64303.0,64296.0,0.3223]
[1724599715919,0.167725,64297.0,64296.0,0.3223]
[1724599716125,0.17041474,64297.0,64296.0,0.3223]
[1724599716910,0.17041474,64297.0,64296.0,0.3303]
[1724599718019,0.24813974,64297.0,64296.0,0.3303]
[1724599718613,0.24913974,64297.0,64296.0,0.3383]
[1724599718820,0.24913974,64297.0,64296.0,0.016]
[1724599719018,0.25013974,64297.0,64296.0,0.016]
[1724599721626,0.16013974,64297.0,64296.0,0.016]
[1724599722123,0.25013974,64297.0,64296.0,0.016]
[1724599723826,0.27190332,64297.0,64296.0,0.016]
[1724599724727,0.19417832,64297.0,64296.0,0.016]
[1724599736833,0.19417832,64297.0,64296.0,0.06251993]
[1724599737441,0.27190332,64297.0,64296.0,0.06251993]
[1724599737728,0.19417832,64297.0,64296.0,0.06251993]
[1724599738144,0.19417832,64297.0,64296.0,0.016]
[1724599739645,0.27190332,64297.0,64296.0,0.016]
[1724599740533,0.27190332,64297.0,64296.0,0.06253842]
[1724599741039,0.27190332,64297.0,64296.0,0.016]
[1724599742148,0.077728,64295.0,64285.0,0.3223]
[1724599742338,0.077728,64295.0,64286.0,0.06207589]
[1724599742339,0.09,64288.0,64286.0,0.06207589]
[1724599742531,0.3608,64286.0,64284.0,0.06207589]
[1724599742737,0.09,64285.0,64284.0,0.06207589]
[1724599743238,0.09308974,64285.0,64283.0,0.04655136]
[1724599743435,0.09,64284.0,64283.0,0.04655136]
[1724599743636,0.077742,64283.0,64282.0,0.04655136]
[1724599744042,0.077743,64282.0,64281.0,0.04655136]
[1724599744236,0.08043274,64282.0,64281.0,0.04655136]
[1724599744438,0.077745,64281.0,64280.0,0.04655136]
[1724599744642,0.167745,64281.0,64280.0,0.04655136]
[1724599745158,0.168145,64281.0,64278.0,0.0002333]
[1724599745336,0.077746,64280.0,64278.0,0.06230919]
[1724599746050,0.0004,64279.0,64278.0,0.06230919]
[1724599746249,0.00308974,64279.0,64278.0,0.06230919]
[1724599748049,0.00308974,64279.0,64278.0,0.14105719]
[1724599748238,0.00308974,64279.0,64278.0,0.14205719]
[1724599748843,0.00308974,64279.0,64278.0,0.14105719]
[1724599749043,0.00408974,64279.0,64278.0,0.14005719]
[1724599749245,0.00508974,64279.0,64278.0,0.14005719]
[1724599749449,0.00508974,64279.0,64278.0,0.0779813]
[1724599752550,0.167746,64280.0,64278.0,0.0779813]
[1724599753247,0.167746,64280.0,64279.0,0.0004]
[1724599754843,0.168746,64280.0,64279.0,0.0004]
[1724599755245,0.168746,64280.0,64279.0,0.0501]
[1724599755447,0.167746,64280.0,64279.0,0.0501]
[1724599755651,0.168746,64280.0,64279.0,0.0511]
[1724599755957,0.169746,64280.0,64279.0,0.0511]
[1724599756356,0.168746,64280.0,64279.0,0.0511]
[1724599756562,0.169746,64280.0,64279.0,0.0541]
[1724599758346,0.169746,64280.0,64279.0,0.1161264]
[1724599758751,0.169746,64280.0,64279.0,0.0541]
[1724599759451,0.169746,64280.0,64279.0,0.1161264]
[1724599759655,0.169746,64280.0,64279.0,0.0541]
[1724599759858,0.169746,64280.0,64279.0,0.1161264]
[1724599763456,0.169746,64280.0,64279.0,0.131847]
[1724599765456,0.169746,64280.0,64279.0,0.32784025]
[1724599765757,0.169746,64280.0,64279.0,0.20936195]
[1724599766461,0.169746,64280.0,64279.0,0.32784083]
[1724599767557,0.169746,64280.0,64279.0,0.25032588]
[1724599770270,0.169746,64280.0,64279.0,0.25032514]
[1724599771265,0.169746,64280.0,64279.0,0.34351902]
[1724599771767,0.169746,64280.0,64279.0,0.25032514]
[1724599773263,0.169746,64280.0,64279.0,0.26708555]
[1724599773467,0.169746,64280.0,64279.0,0.12287814]
[1724599774952,0.169746,64280.0,64279.0,0.20061541]
[1724599775160,0.216846,64280.0,64279.0,0.0044]
[1724599775553,0.216846,64280.0,64279.0,0.06656984]
[1724599776365,0.216846,64280.0,64279.0,0.06657065]
[1724599776868,0.216846,64280.0,64279.0,0.0044]
[1724599778762,0.577646,64280.0,64279.0,0.0044]
[1724599779755,0.216846,64280.0,64279.0,0.0044]
[1724599779960,0.577646,64280.0,64279.0,0.0044]
[1724599780365,0.577646,64280.0,64279.0,0.0509954]
[1724599780569,0.577646,64280.0,64279.0,0.0044]
[1724599783171,0.216846,64280.0,64279.0,0.0044]
[1724599783368,0.577646,64280.0,64279.0,0.0044]
[1724599783761,0.655392,64280.0,64279.0,0.0044]
[1724599785671,0.656392,64280.0,64279.0,0.0064]
[1724599786866,0.295592,64280.0,64279.0,0.0064]
[1724599787180,1.017192,64280.0,64279.0,0.0064]
[1724599795387,0.970092,64280.0,64279.0,0.0064]
[1724599799596,0.248492,64280.0,64279.0,0.0064]
[1724599799897,0.970092,64280.0,64279.0,0.0064]
[1724599800889,1.018592,64280.0,64279.0,0.0064]
[1724599801394,1.485312,64280.0,64279.0,0.0064]
[1724599802099,1.395312,64280.0,64279.0,0.0064]
[1724599802301,1.018592,64280.0,64279.0,0.0064]
[1724599802597,1.485312,64280.0,64279.0,0.0064]
[1724599803498,1.018592,64280.0,64279.0,0.0064]
[1724599805395,0.296992,64280.0,64279.0,0.0064]
[1724599805787,1.018592,64280.0,64279.0,0.0064]
[1724599806901,0.970092,64280.0,64279.0,0.0064]
[1724599809992,0.077747,64279.0,64278.0,0.0465954]
[1724599810294,0.077747,64279.0,64274.0,0.06217065]
[1724599810295,0.155508,64273.0,64272.0,0.06217065]
[1724599810487,0.077755,64272.0,64271.0,0.06217065]
[1724599810691,0.167755,64272.0,64271.0,0.06217065]
[1724599811085,0.167755,64272.0,64269.0,0.0479]
[1724599811086,0.077757,64271.0,64270.0,0.06217065]
[1724599811489,0.155516,64270.0,64269.0,0.06217065]
[1724599811692,0.077766,64264.0,64259.0,0.07773727]
[1724599811991,0.077774,64257.0,64256.0,0.07773727]
[1724599812293,0.09,64257.0,64254.0,0.17745727]
[1724599812495,0.077775,64256.0,64255.0,0.06215256]
[1724599813292,0.077775,64256.0,64254.0,0.16095256]
[1724599813497,0.077776,64255.0,64254.0,0.16095256]
[1724599813998,0.078176,64255.0,64254.0,0.16095256]
[1724599814304,0.078176,64255.0,64254.0,0.0988]
[1724599814904,0.078176,64255.0,64254.0,0.14537735]
[1724599815489,0.078176,64255.0,64254.0,0.0988]
[1724599815694,0.079176,64255.0,64254.0,0.0998]
[1724599816097,0.079176,64255.0,64254.0,0.001]
[1724599816395,0.07935929,64255.0,64254.0,0.001]
[1724599816999,0.08035929,64255.0,64254.0,0.001]
[1724599818605,0.54723929,64255.0,64254.0,0.001]
[1724599818908,0.077782,64250.0,64249.0,0.0002333]
[1724599819201,0.528582,64250.0,64249.0,0.0002333]
[1724599819892,0.528982,64250.0,64249.0,0.0002333]
[1724599820494,0.529982,64250.0,64249.0,0.0002333]
[1724599821202,0.530982,64250.0,64249.0,0.0002333]
[1724599822100,0.529982,64250.0,64249.0,0.0002333]
[1724599822895,0.528982,64250.0,64249.0,0.0002333]
[1724599825308,0.3612,64250.0,64249.0,0.0780163]
[1724599825703,0.3612,64250.0,64249.0,0.1250163]
[1724599827304,0.4512,64250.0,64249.0,0.1250163]
[1724599829806,0.0904,64250.0,64249.0,0.1250163]
[1724599830307,0.168182,64250.0,64249.0,0.0472333]
[1724599832307,0.168182,64250.0,64249.0,0.09367754]
[1724599832810,0.168182,64250.0,64249.0,0.0472333]
[1724599839711,0.078182,64250.0,64249.0,0.0472333]
[1724599840414,0.078182,64250.0,64249.0,0.09367754]
[1724599840617,0.078182,64250.0,64249.0,0.0472333]
[1724599840819,0.078182,64250.0,64249.0,0.1250163]
[1724599841219,0.168182,64250.0,64249.0,0.1250163]
[1724599842717,0.168182,64250.0,64249.0,0.0002333]
[1724599843323,0.168182,64250.0,64249.0,0.06240529]
[1724599844421,0.168182,64250.0,64249.0,0.0002333]
[1724599848827,0.168182,64250.0,64249.0,0.06242815]
[1724599851322,0.168182,64250.0,64249.0,0.0002333]
[1724599855728,0.168182,64250.0,64249.0,0.19617969]
[1724599856227,0.168182,64250.0,64249.0,0.11877263]
[1724599856422,0.168182,64250.0,64249.0,0.19659757]
[1724599857522,0.168182,64250.0,64249.0,0.0002333]
[1724599857728,0.168182,64250.0,64249.0,0.07805823]
[1724599857922,0.168182,64250.0,64249.0,0.0002333]
[1724599867920,0.0004,64250.0,64249.0,0.0002333]
[1724599868126,0.00018329,64255.0,64249.0,0.18342259]
[1724599868325,0.09,64254.0,64253.0,0.15559547]
[1724599868534,0.09,64254.0,64253.0,0.077777]
[1724599869140,0.00018329,64255.0,64253.0,0.077777]
[1724599869141,0.00018329,64255.0,64254.0,0.077777]
[1724599869838,0.00018329,64255.0,64254.0,0.078177]
[1724599870635,0.00018329,64255.0,64254.0,0.14038599]
[1724599871027,0.00318329,64255.0,64254.0,0.14038599]
[1724599871530,0.00318329,64255.0,64254.0,0.078177]
[1724599872136,0.00518329,64255.0,64254.0,0.078177]
[1724599872337,0.00518329,64255.0,64254.0,0.0989599]
[1724599874033,0.00518329,64255.0,64254.0,0.16114835]
[1724599874337,0.00518329,64255.0,64254.0,0.0989599]